fUSD/lending_fUSD_20260320
["ID","MTS","AMOUNT","RATE_DAILY","PERIOD"]
[408628546,1774012243336,-500.0,0.00013698,2]
[408628547,1774012243346,-500.0,0.00013698,2]
[408628548,1774012243357,-500.0,0.00013698,2]
[408628549,1774012243366,-500.0,0.00013698,2]
[408628551,1774012243377,-500.0,0.00013698,2]
[408628552,1774012243388,-500.0,0.00013698,2]
[408628553,1774012243397,-500.0,0.00013698,2]
[408628554,1774012243407,-500.0,0.00013698,2]
[408628555,1774012243417,-500.0,0.00013698,2]
[408628556,1774012243427,-500.0,0.00013698,2]
[408628557,1774012243437,-500.0,0.00013698,2]
[408628558,1774012243446,-500.0,0.00013698,2]
[408628559,1774012243455,-500.0,0.00013698,2]
[408628560,1774012243465,-500.0,0.00013698,2]
[408628561,1774012243474,-500.0,0.00013698,2]
[408628562,1774012243484,-500.0,0.00013698,2]
[408628563,1774012243494,-500.0,0.00013698,2]
[408628564,1774012243505,-500.0,0.00013698,2]
[408628566,1774012243514,-500.0,0.00013698,2]
[408628567,1774012243524,-500.0,0.00013698,2]
[408628569,1774012243534,-500.0,0.00013698,2]
[408628571,1774012243543,-500.0,0.00013698,2]
[408628573,1774012243553,-500.0,0.00013698,2]
[408628575,1774012243563,-500.0,0.00013698,2]
[408628576,1774012243573,-500.0,0.00013698,2]
[408628577,1774012243582,-500.0,0.00013698,2]
[408628578,1774012243592,-500.0,0.00013698,2]
[408628579,1774012243602,-500.0,0.00013698,2]
[408628580,1774012243611,-500.0,0.00013698,2]
[408628581,1774012243621,-500.0,0.00013698,2]
[408628582,1774012243631,-500.0,0.00013698,2]
[408628583,1774012243640,-500.0,0.00013698,2]
[408628584,1774012243650,-500.0,0.00013698,2]
[408628585,1774012243660,-500.0,0.00013698,2]
[408628586,1774012243669,-500.0,0.00013698,2]
[408628587,1774012243679,-500.0,0.00013698,2]
[408628588,1774012243688,-500.0,0.00013698,2]
[408628589,1774012243698,-500.0,0.00013698,2]
[408628590,1774012243707,-425.48857279,0.00013698,2]
[408628591,1774012243717,-500.0,0.00013698,2]
[408628592,1774012243726,-500.0,0.00013698,2]
[408628593,1774012243737,-500.0,0.00013698,2]
[408628594,1774012243747,-500.0,0.00013698,2]
[408628595,1774012243757,-500.0,0.00013698,2]
[408628596,1774012243766,-500.0,0.00013698,2]
[408628597,1774012243775,-500.0,0.00013698,2]
[408628598,1774012243785,-500.0,0.00013698,2]
[408628599,1774012243794,-500.0,0.00013698,2]
[408628600,1774012243804,-500.0,0.00013698,2]
[408628601,1774012243814,-500.0,0.00013698,2]
[408628602,1774012243824,-500.0,0.00013698,2]
[408628603,1774012243833,-547.81859587,0.00013698,2]
[408628604,1774012243843,-500.0,0.00013698,2]
[408628605,1774012243853,-151.0,0.00013698,2]
[408628606,1774012243863,-500.0,0.00013698,2]
[408628607,1774012243873,-151.0,0.00013698,2]
[408628608,1774012243883,-500.0,0.00013698,2]
[408628609,1774012243893,-479.42632625,0.00013698,2]
[408628610,1774012243902,-151.0,0.00013698,2]
[408628611,1774012243911,-150.0,0.00013699,2]
[408628612,1774012243921,-150.0,0.00013699,2]
[408628613,1774012243931,-364.26,0.00013699,2]
[408628614,1774012243941,-179.02,0.00013699,2]
[408628615,1774012243951,-151.0,0.00013699,2]
[408628616,1774012243962,-151.0,0.00013699,2]
[408628617,1774012243972,-198.913734,0.00013699,2]
[408628618,1774012243982,-200.0,0.00013699,2]
[408628619,1774012243992,-151.0,0.00013699,2]
[408628620,1774012244002,-151.0,0.00013699,2]
[408628621,1774012244012,-151.0,0.00013699,2]
[408628622,1774012244022,-151.0,0.00013699,2]
[408628623,1774012244032,-151.0,0.00013699,2]
[408628624,1774012244042,-151.0,0.00013699,2]
[408628625,1774012244052,-151.0,0.00013699,2]
[408628626,1774012244061,-151.0,0.00013699,2]
[408628627,1774012244071,-151.0,0.00013699,2]
[408628628,1774012244080,-151.0,0.00013699,2]
[408628629,1774012244090,-151.0,0.00013699,2]
[408628630,1774012244100,-151.0,0.00013699,2]
[408628631,1774012244110,-214.188707,0.00013699,2]
[408628632,1774012244119,-151.0,0.00013699,2]
[408628633,1774012244129,-247.0,0.00013699,2]
[408628634,1774012244139,-151.0,0.00013699,2]
[408628635,1774012244148,-151.0,0.00013699,2]
[408628636,1774012244159,-151.0,0.00013699,2]
[408628637,1774012244169,-151.0,0.00013699,2]
[408628638,1774012244178,-151.0,0.00013699,2]
[408628639,1774012244188,-151.0,0.00013699,2]
[408628640,1774012244198,-166.859405,0.00013699,2]
[408628641,1774012244208,-666.0,0.00013699,2]
[408628642,1774012244218,-672.44576879,0.00013699,2]
[408628643,1774012244228,-174.89,0.00013699,2]
[408628644,1774012244237,-500.0,0.00013699,2]
[408628645,1774012244247,-500.0,0.00013699,2]
[408628646,1774012244256,-500.0,0.00013699,2]
[408628647,1774012244267,-500.0,0.00013699,2]
[408628648,1774012244276,-500.0,0.00013699,2]
[408628649,1774012244286,-507.1444704,0.00013699,2]
[408628650,1774012244296,-378.15,0.000137,2]
[408628651,1774012244309,-122030.54,0.000137,2]
[408628652,1774012244319,-222.23,0.000137,2]
[408628653,1774012244328,-317.71,0.000137,2]
[408628654,1774012244338,-3147.51,0.000137,2]
[408628655,1774012244349,-3147.51,0.000137,2]
[408628656,1774012244359,-1300.0,0.000139,5]
[408628657,1774012244368,-150.0,0.00013973,2]
[408628658,1774012244378,-50410.64925411,0.0001399,2]
[408628659,1774012244390,-2750.0,0.00014,2]
[408628660,1774012244399,-517.77920076,0.00014147,2]
[408628661,1774012244409,-170.0,0.00014192,2]
[408628662,1774012244418,-500.0,0.00014224,2]
[408628663,1774012244428,-500.0,0.00014224,2]
[408628664,1774012244437,-500.0,0.00014224,2]
[408628665,1774012244447,-40318.68333825,0.00014225,2]
[408628666,1774012244456,-6419.22703328,0.00014232,2]
[408628667,1774012244466,-150.0,0.00014247,2]
[408628668,1774012244475,-3845.911,0.00014247,2]
[408628669,1774012244485,-163.312,0.00014247,2]
[408628670,1774012244495,-1000.0,0.00014256,2]
[408628671,1774012244504,-260.0844,0.000143,2]
[408628672,1774012244516,-364.26,0.00014384,2]
[408628673,1774012244528,-3860.92561488,0.00014407,2]
[408628674,1774012244537,-4043.69592308,0.00014429,2]
[408628675,1774012244547,-2000.0,0.00014448,2]
[408628676,1774012244557,-335.61,0.00014495,2]
[408628677,1774012244566,-1644.75,0.00014504,2]
[408628678,1774012244575,-500.0,0.00014506,2]
[408628679,1774012244585,-1400.0,0.00014506,2]
[408628680,1774012244594,-1000.0,0.00014506,2]
[408628681,1774012244604,-753.0,0.00014739,5]
[408628682,1774012244615,-1344.0,0.00014739,2]
[408628683,1774012244624,-621.0,0.00014739,2]
[408628684,1774012244634,-785.17,0.00014739,2]
[408628685,1774012244644,-1215.0,0.00014739,2]
[408628686,1774012244653,-924.0,0.00014739,2]
[408628687,1774012244663,-2465.0,0.00014739,2]
[408628688,1774012244672,-6006.0,0.00014739,2]
[408628689,1774012244682,-155.0,0.00014856,2]
[408628690,1774012244691,-517.77920073,0.00014898,2]
[408628691,1774012244701,-6419.22703328,0.00014965,2]
[408628692,1774012244711,-502.0,0.00014968,3]
[408628693,1774012244720,-500.0,0.00014988,2]
[408628694,1774012244729,-500.0,0.00014988,2]
[408628695,1774012244740,-539.0,0.00015,2]
[408628696,1774012244750,-250.0,0.00015,2]
[408628697,1774012244759,-1088.0,0.00015,2]
[408628698,1774012244769,-1130.99685696,0.00015016,2]
[408628699,1774012244779,-303.680445,0.00015068,2]
[408628700,1774012244788,-417.47,0.00015068,2]
[408628701,1774012244798,-364.26,0.00015068,2]
[408628702,1774012244808,-162.0,0.00015077,2]
[408628703,1774012244818,-2402.0,0.00015116,2]
[408628704,1774012244828,-2402.0,0.00015116,2]
[408628705,1774012244838,-183.65717362,0.00015192,2]
[408628706,1774012244848,-1564.0,0.0001525,2]
[408628707,1774012244858,-999.99,0.0001531,2]
[408628708,1774012244868,-3849.37,0.0001531,2]
[408628709,1774012244878,-4117.79,0.0001531,2]
[408628710,1774012244887,-9999.99,0.0001531,2]
[408628711,1774012244897,-4619.96,0.0001531,2]
[408628712,1774012244906,-7595.79,0.0001531,2]
[408628713,1774012244916,-150.99,0.0001531,2]
[408628714,1774012244926,-6738.84,0.0001531,2]
[408628715,1774012244936,-9999.99,0.0001531,2]
[408628716,1774012244946,-299.99,0.0001531,2]
[408628717,1774012244956,-150.99,0.0001531,2]
[408628718,1774012244968,-29758.46768116,0.0001531,2]
[408628719,1774012244990,-19328.86948804,0.0001531,2]
[408628720,1774012245011,-2427.57757464,0.0001531,2]
[408628721,1774012245023,-363.98,0.0001531,2]
[408628722,1774012245142,-415.0,0.00011739,2]
[408628723,1774012245152,-415.0,0.00014739,2]
[408628724,1774012245162,-287.08,0.0001531,2]
[408628725,1774012245177,-396.74959935,0.0001531,2]
[408628726,1774012245189,-1445.93143005,0.0001531,2]
[408628727,1774012245201,-768.71294345,0.0001531,2]
[408628728,1774012245435,-601.68868275,0.000139,2]
[408628729,1774012245460,-1027.23724345,0.000139,2]
[408628730,1774012245473,-914.0,0.000139,2]
[408628731,1774012246032,-24122.31308478,0.000139,2]
[408628732,1774012246042,-28233.60128331,0.0001531,2]
[408628733,1774012246052,-940.89523973,0.00015347,2]
[408628734,1774012246061,-500.0,0.00015399,2]
[408628735,1774012246073,-500.0,0.00015399,2]
[408628736,1774012246083,-500.0,0.00015399,2]
[408628737,1774012246091,-378.15,0.000154,2]
[408628738,1774012246101,-51059.73282721,0.000154,2]
[408628739,1774012246112,-2139.7796619,0.000154,2]
[408628740,1774012246124,-387.93218086,0.000154,2]
[408628746,1774012753879,169.98,8.446e-05,2]
[408628758,1774013432089,-168.0,9.683e-05,2]
[408628759,1774013432100,-150.0,9.683e-05,2]
[408628760,1774013432111,-1519.89176521,9.683e-05,2]
[408628761,1774013432121,-150.0,9.683e-05,7]
[408628762,1774013432131,-230.0,9.683e-05,2]
[408628763,1774013432141,-1724.05610294,0.00010486,2]
[408628764,1774013432154,-1299.01520781,0.00010486,2]
[408628765,1774013432205,-53.65768925,0.00010486,2]
[408628766,1774013432215,-163.312,0.00010486,2]
[408628767,1774013432225,-126.25189677,0.000105,3]
[408628768,1774013432264,-401.27810323,0.000105,3]
[408628770,1774013432275,-363.0141,0.000106,2]
[408628772,1774013432285,-2500.0,0.000106,2]
[408628774,1774013432295,-152.00314004,0.000106,2]
[408628776,1774013432304,-156.01934111,0.000106,2]
[408628778,1774013432314,-156.41823681,0.000106,2]
[408628780,1774013432323,-155.30680442,0.000106,2]
[408628782,1774013432332,-500545.6972,0.000106,2]
[408628784,1774013432342,-6762.1846,0.000106,2]
[408628786,1774013432351,-500.0,0.00010673,2]
[408628788,1774013432360,-500.0,0.00010699,2]
[408628789,1774013432369,-500.0,0.00010699,2]
[408628791,1774013432379,-500.0,0.00010699,2]
[408628793,1774013432388,-500.0,0.00010699,2]
[408628796,1774013432400,-500.0,0.00010699,2]
[408628797,1774013432410,-500.0,0.00010699,2]
[408628798,1774013432419,-500.0,0.00010699,2]
[408628799,1774013432428,-500.0,0.00010699,2]
[408628800,1774013432437,-500.0,0.00010699,2]
[408628801,1774013432447,-565.33188214,0.00010699,2]
[408628802,1774013432456,-500.0,0.00010699,2]
[408628803,1774013432466,-500.0,0.00010699,2]
[408628804,1774013432476,-500.0,0.00010699,2]
[408628805,1774013432485,-500.0,0.00010699,2]
[408628806,1774013432494,-500.0,0.00010699,2]
[408628807,1774013432504,-500.0,0.00010699,2]
[408628808,1774013432514,-256.16,0.00010699,2]
[408628809,1774013432523,-157.87765431,0.00010881,2]
[408628810,1774013432533,-300.0,0.000109,3]
[408628811,1774013432542,-2021.84796154,0.000109,2]
[408628812,1774013432552,-256.16,0.00010973,2]
[408628813,1774013432562,-3747.1309255,0.00010981,2]
[408628814,1774013432571,-13696.80357504,0.00011099,2]
[408628815,1774013432580,-3047.28899046,0.00011099,2]
[408628816,1774013432590,-256.16,0.00011247,2]
[408628817,1774013432599,-1000.0,0.00011313,2]
[408628818,1774013432609,-13696.80357495,0.00011322,2]
[408628819,1774013432618,-160.81,0.00011514,2]
[408628820,1774013432628,-256.16,0.00011521,2]
[408628821,1774013432638,-3047.28899046,0.00011572,2]
[408628822,1774013432648,-980.0,0.00011592,2]
[408628823,1774013432659,-2000.0,0.00011749,2]
[408628824,1774013432670,-256.21,0.00011795,2]
[408628825,1774013432679,-2021.84796154,0.00011871,2]
[408628826,1774013432690,-600.0,0.000119,4]
[408628827,1774013432701,-1003.89322888,0.00012008,2]
[408628828,1774013432711,-150.0,0.000121,2]
[408628829,1774013432721,-976.156,0.00012121,2]
[408628830,1774013432732,-908.382,0.00012121,2]
[408628831,1774013432742,-616.591,0.00012121,2]
[408628832,1774013432751,-504.25347756,0.00012121,2]
[408628833,1774013432761,-500.0,0.00012127,2]
[408628834,1774013432771,-1264.59703054,0.00012144,2]
[408628841,1774013438178,-12432.20654441,0.00012144,2]
[408628842,1774013438188,-200.0,0.00012337,2]
[408628843,1774013438199,-1261.41585828,0.00012363,2]
[408628844,1774013438235,-1448.16892902,0.00012363,2]
[408628850,1774013440588,-697.8099166,0.00012121,2]
[408628851,1774013440750,-335.33524895,0.00012121,2]
[408628856,1774013443187,-1337.79988137,0.00012121,2]
[408628857,1774013443199,-1472.24031708,0.00012121,2]
[408628858,1774013443211,-495.63070915,0.00012121,2]
[408628859,1774013443353,-881.27009574,0.00012121,2]
[408628860,1774013443368,-680.76275655,0.00012121,2]
[408628861,1774013443385,-105.15107456,0.00012121,2]
[408628862,1774013443400,-337.70420316,0.00012363,2]
[408628863,1774013443413,-726.0,0.00012854,5]
[408628864,1774013443424,-7322.39213747,0.00012967,2]
[408628865,1774013443442,-6374.41143748,0.00012967,2]
[408628866,1774013443455,-3047.28899046,0.00013154,2]
[408628867,1774013443468,-979.16666667,0.00013167,2]
[408628868,1774013443480,-160.0,0.00013167,2]
[408628869,1774013443492,-2000.0,0.00013217,2]
[408628870,1774013443505,-2021.84796154,0.00013243,2]
[408628871,1774013443518,-502.0,0.000133,2]
[408628872,1774013443531,-197.4989,0.000134,2]
[408628873,1774013443544,-3240.0,0.00013425,2]
[408628874,1774013443556,-1026.0,0.00013519,2]
[408628875,1774013443568,-1026.0,0.00013557,2]
[408628876,1774013443580,-1026.0,0.00013562,2]
[408628877,1774013443591,-1026.0,0.00013632,2]
[408628878,1774013443601,-1026.0,0.00013696,2]
[408628879,1774013443612,-179.02,0.00013699,2]
[408628880,1774013443626,-260.39,0.00013699,2]
[408628881,1774013443638,-154.01,0.00013699,2]
[408628882,1774013443651,-104547.61,0.000137,2]
[408628883,1774013443667,-1026.0,0.0001371,2]
[408628884,1774013443679,-1100.0,0.00013756,2]
[408628885,1774013443692,-331.26408318,0.00013756,2]
[408628912,1774013446108,-168.73591682,0.00013756,2]
[408628914,1774013446123,-800.0,0.00013756,2]
[408628916,1774013446136,-454.66593171,0.00013756,2]
[408628919,1774013446152,-571.33406829,0.00013756,2]
[408628922,1774013446167,-552.37832506,0.00013789,2]
[408628927,1774013446209,-13144.42524989,0.00013789,2]
[408628929,1774013446222,-1026.0,0.00013805,2]
[408628932,1774013446236,-1026.0,0.00013824,2]
[408628934,1774013446248,-1026.0,0.0001383,2]
[408628935,1774013446261,-1026.0,0.00013839,2]
[408628936,1774013446273,-1026.0,0.00013883,2]
[408628937,1774013446285,-1026.0,0.00013883,2]
[408628940,1774013446298,-3047.28899046,0.00013945,2]
[408628942,1774013446310,-1026.0,0.00014098,2]
[408628944,1774013446323,-1026.0,0.00014098,2]
[408628947,1774013446334,-1026.0,0.00014245,2]
[408628949,1774013446346,-1026.0,0.00014345,2]
[408628951,1774013446359,-260.39,0.00014384,2]
[408628953,1774013446371,-1026.0,0.0001449,2]
[408628956,1774013446382,-500.0,0.00014504,2]
[408628958,1774013446394,-500.0,0.00014504,2]
[408628960,1774013446407,-500.0,0.00014504,2]
[408628963,1774013446420,-501.0,0.00014504,2]
[408628965,1774013446432,-9999.99,0.00014504,2]
[408628968,1774013446450,-4999.99,0.00014504,2]
[408628970,1774013446464,-1543.75,0.00014504,2]
[408628972,1774013446477,-354.53,0.00014504,2]
[408628973,1774013446491,-301.06,0.00014504,2]
[408628975,1774013446505,-150.99,0.00014504,2]
[408628977,1774013446518,-9438.63,0.00014504,2]
[408628978,1774013446530,-1026.0,0.00014576,2]
[408628980,1774013446543,-1026.0,0.00014577,2]
[408628982,1774013446556,-1026.0,0.00014596,2]
[408628983,1774013446569,-13696.80357495,0.00014611,2]
[408628985,1774013446580,-2021.84796154,0.00014614,2]
[408628987,1774013446593,-1026.0,0.00014658,2]
[408628989,1774013446606,-2000.0,0.00014686,2]
[408628990,1774013446618,-260.0388,0.000147,2]
[408628992,1774013446631,-3047.28899046,0.00014736,2]
[408628994,1774013446643,-1026.0,0.00014766,2]
[408628996,1774013446657,-1026.0,0.0001477,2]
[408628998,1774013446673,-1026.0,0.00014852,2]
[408628999,1774013446685,-250.0,0.00015,2]
[408629001,1774013446700,-502.0,0.00015055,3]
[408629003,1774013446714,-208.73,0.00015068,2]
[408629005,1774013446727,-260.39,0.00015068,2]
[408629007,1774013446740,-1037.20255334,0.00015092,2]
[408629009,1774013446752,-6006.0,0.00015121,2]
[408629010,1774013446764,-1100.0,0.00015126,2]
[408629012,1774013446776,-500.0,0.00015126,2]
[408629013,1774013446793,-800.0,0.00015126,2]
[408629015,1774013446808,-37147.5071946,0.00015142,2]
[408629017,1774013446822,-5023.627102,0.00015142,2]
[408629019,1774013446836,-31043.6374681,0.00015142,2]
[408629022,1774013446849,-3026.1900853,0.00015142,2]
[408629024,1774013446864,-1567.0,0.0001516,2]
[408629027,1774013446877,-269.10137,0.0001525,2]
[408629029,1774013446890,-269.10137,0.0001525,2]
[408629030,1774013446903,-269.10137,0.0001526,2]
[408629032,1774013446918,-150.0,0.000153,2]
[408629034,1774013446931,-173.1841697,0.000153,2]
[408629036,1774013446944,-150.0,0.000153,2]
[408629037,1774013446957,-150.0,0.000153,2]
[408629038,1774013446969,-150.0,0.000153,2]
[408629039,1774013446981,-150.0,0.000153,2]
[408629040,1774013446993,-150.33717718,0.000153,2]
[408629041,1774013447010,-150.0,0.000153,2]
[408629042,1774013447028,-150.25271916,0.000153,2]
[408629043,1774013447041,-201.33333334,0.000154,2]
[408629044,1774013447052,-1000.0,0.000154,2]
[408629045,1774013447065,-1000.0,0.000154,2]
[408629046,1774013447076,-1000.0,0.000154,2]
[408629047,1774013447088,-1000.0,0.000154,2]
[408629048,1774013447101,-823.896,0.000154,2]
[408629049,1774013447113,-269.10137,0.000154,2]
[408629050,1774013447124,-269.10138,0.000154,2]
[408629051,1774013447136,-269.10138,0.000154,2]
[408629052,1774013447152,-13696.80357495,0.00015433,2]
[408629053,1774013447167,-4000.0,0.00015507,2]
[408629054,1774013447179,-3047.28899046,0.00015527,2]
[408629055,1774013447192,-252.60295329,0.00015616,2]
[408629056,1774013447206,-330.974504,0.0001568,7]
[408629057,1774013447219,-500.0,0.00015716,2]
[408629058,1774013447231,-500.0,0.00015716,2]
[408629059,1774013447243,-260.39,0.00015753,2]
[408629060,1774013447255,-178.64,0.00015837,2]
[408629061,1774013447267,-2000.0,0.0001589,2]
[408629062,1774013447279,-4000.0,0.00015895,2]
[408629063,1774013447290,-150.0,0.000159,2]
[408629064,1774013447302,-150.0,0.000159,2]
[408629065,1774013447313,-6746.38036728,0.000159,2]
[408629066,1774013447328,-97801.22963272,0.000159,2]
[408629067,1774013447340,-150.0040118,0.000159,2]
[408629068,1774013447351,-1000.0,0.000159,5]
[408629069,1774013447362,-2561.4152198,0.0001596,2]
[408629070,1774013447374,-2021.84796154,0.00015986,2]
[408629071,1774013447384,-872.50067201,0.0001599,2]
[408629072,1774013447395,-500.0,0.00015999,2]
[408629073,1774013447406,-500.0,0.00015999,2]
[408629074,1774013447417,-500.0,0.00015999,2]
[408629075,1774013447428,-500.0,0.00015999,2]
[408629076,1774013447439,-500.0,0.00015999,2]
[408629077,1774013447450,-170.128,0.00016,2]
[408629078,1774013447461,-4817.87450063,0.00016,2]
[408629079,1774013447474,-727.293,0.00016,2]
[408629080,1774013447488,-431.885,0.00016,2]
[408629081,1774013447522,-138.2405,0.00016,2]
[408629082,1774013845505,150.5,3e-08,60]
[408629084,1774013845672,150.5,4e-08,60]
[408629086,1774013845910,150.5,6e-08,60]
[408629088,1774014127961,161.9,6.595e-05,2]
[408629091,1774014355089,1000.01,9e-05,2]
[408629093,1774014464275,10000.0,0.000163,120]
[408629094,1774014470309,10000.0,0.000163,120]
[408629095,1774014478107,6411.0,0.000163,120]
[408629110,1774014631275,-200.0,9.9e-05,3]
[408629111,1774014631285,-400.0,0.0001,3]
[408629112,1774014631295,-716.7707529,0.0001029,2]
[408629113,1774014631307,-735.90085166,0.0001029,2]
[408629114,1774014631320,-281.1,0.0001029,2]
[408629115,1774014631401,-1761.49480591,0.0001029,2]
[408629138,1774014637447,-163.7692589,0.0001029,2]
[408629139,1774014637458,-287.38578871,0.0001029,2]
[408629140,1774014637470,-2962.80721129,0.0001029,2]
[408629141,1774014637480,-162.728,0.0001029,2]
[408629142,1774014637490,-7442.17459409,0.0001039,2]
[408629143,1774014637500,-3633.8676,0.00010399,2]
[408629144,1774014637510,-9189.21566681,0.000104,2]
[408629145,1774014637519,-7444.2752,0.000105,2]
[408629146,1774014637529,-1000.0,0.000105,2]
[408629147,1774014637540,-5170.38194256,0.00011099,2]
[408629148,1774014637551,-914.18669721,0.00011099,2]
[408629149,1774014637560,-914.18669713,0.00011589,2]
[408629150,1774014637570,-5170.38194253,0.00011589,2]
[408629151,1774014637580,-150.0,0.000117,2]
[408629152,1774014637590,-166.66,0.00011704,2]
[408629153,1774014637600,-1044.0,0.00011921,2]
[408629155,1774014637609,-1344.0,0.00011921,2]
[408629157,1774014637619,-6035.722,0.00011921,2]
[408629159,1774014637628,-2465.0,0.00011921,2]
[408629161,1774014637638,-166.66,0.00011951,2]
[408629163,1774014637647,-166.66,0.00012197,2]
[408629165,1774014637657,-914.18669713,0.00012378,2]
[408629167,1774014637666,-5170.38194253,0.00012378,2]
[408629169,1774014637676,-894.42353592,0.00012381,7]
[408629171,1774014637688,-974.33676083,0.00012381,7]
[408629173,1774014637700,-5018.84606289,0.00012381,7]
[408629176,1774014637719,-3544.53656134,0.00012381,7]
[408629178,1774014637731,-111.35707902,0.00012381,7]
[408629180,1774014637740,-166.66,0.00012443,2]
[408629182,1774014637750,-166.66,0.0001269,2]
[408629184,1774014637759,-150.0,0.00012905,2]
[408629186,1774014637770,-124.82292098,0.00012936,2]
[408629189,1774014637789,-41.83707902,0.00012936,2]
[408629191,1774014637799,-197.4858,0.00013,2]
[408629193,1774014637808,-979.16666667,0.00013145,2]
[408629195,1774014637818,-914.18669713,0.00013167,2]
[408629197,1774014637827,-5170.38194253,0.00013167,2]
[408629200,1774014637837,-502.0,0.000133,2]
[408629202,1774014637847,-403.91,0.00013314,2]
[408629204,1774014637856,-200.0,0.00013699,2]
[408629206,1774014637866,-150.9,0.00013699,2]
[408629208,1774014637876,-285.94,0.000137,2]
[408629209,1774014637885,-165.18,0.00013876,2]
[408629212,1774014637895,-914.18669713,0.00013956,2]
[408629214,1774014637905,-5170.38194253,0.00013956,2]
[408629215,1774014637914,-677.0,0.00014201,5]
[408629217,1774014637924,-165.18,0.00014334,2]
[408629219,1774014637933,-500.0,0.00014356,2]
[408629221,1774014637943,-900.0,0.00014356,2]
[408629223,1774014637953,-700.0,0.00014356,2]
[408629225,1774014637962,-260.0044,0.000144,2]
[408629227,1774014637972,-16836.77,0.00014504,2]
[408629229,1774014637982,-914.18669713,0.00014744,2]
[408629231,1774014637991,-5170.38194253,0.00014744,2]
[408629233,1774014638001,-165.18,0.00014792,2]
[408629235,1774014638010,-1044.0,0.00014921,2]
[408629237,1774014638019,-1344.0,0.00014921,2]
[408629239,1774014638028,-2465.0,0.00014921,2]
[408629241,1774014638038,-250.0,0.00015,2]
[408629243,1774014638049,-502.0,0.00015153,3]
[408629245,1774014638062,-165.18,0.0001525,2]
[408629247,1774014638072,-3986.98,0.00015507,2]
[408629249,1774014638081,-914.18669713,0.00015533,2]
[408629251,1774014638095,-5170.38194253,0.00015533,2]
[408629253,1774014638104,-342.3147,0.000157,2]
[408629255,1774014638114,-165.18,0.00015708,2]
[408629257,1774014638124,-500.0,0.00015726,2]
[408629259,1774014638133,-900.0,0.00015726,2]
[408629261,1774014638143,-700.0,0.00015726,2]
[408629262,1774014638153,-516.0,0.00015809,2]
[408629264,1774014638163,-1185.6802176,0.00015821,2]
[408629267,1774014638174,-7964.5357,0.00015821,2]
[408629268,1774014638183,-500.30087802,0.00015821,2]
[408629291,1774014639775,-870.73350768,0.00015821,2]
[408629292,1774014639786,-2000.0,0.0001589,2]
[408629293,1774014639800,-3986.98,0.00015895,2]
[408629294,1774014639810,-700.0,0.000159,5]
[408629295,1774014639820,-150.00401196,0.000159,2]
[408629296,1774014639831,-150.0040118,0.000159,2]
[408629297,1774014639840,-150.0040118,0.000159,2]
[408629298,1774014639850,-150.0040118,0.000159,2]
[408629299,1774014639859,-150.0040118,0.000159,2]
[408629300,1774014639870,-150.0040118,0.000159,2]
[408629301,1774014639881,-150.0040118,0.000159,2]
[408629302,1774014639892,-150.0040118,0.000159,2]
[408629303,1774014639902,-150.0040118,0.000159,2]
[408629304,1774014639913,-150.0040118,0.000159,2]
[408629305,1774014639922,-150.0040118,0.000159,2]
[408629306,1774014639932,-150.0040118,0.000159,2]
[408629307,1774014639941,-150.0040118,0.000159,2]